bitfinex/quotes_SOLUSD_20260211
["timestamp","ask_amount","ask_price","bid_price","bid_amount"]
[1770791670168,12.40914801,81.5,81.478,0.91074757]
[1770791670967,24.67912328,81.5,81.478,0.91074757]
[1770791671592,12.26997527,81.5,81.478,0.91074757]
[1770791671782,25.55398432,81.5,81.478,0.91074757]
[1770791672868,0.87486104,81.499,81.478,0.91074757]
[1770791673776,0.87486104,81.497,81.461,40.54]
[1770791673994,5.50841939,81.48,81.459,0.91074757]
[1770791674376,0.87486104,81.479,81.446,0.91074757]
[1770791674570,0.87486104,81.459,81.43,0.91074757]
[1770791674874,4.63355835,81.48,81.43,0.91074757]
[1770791674875,12.27762157,81.449,81.43,0.91074757]
[1770791675985,12.27762157,81.449,81.422,0.91074757]
[1770791676289,12.27684782,81.455,81.425,0.91074757]
[1770791676874,12.27684782,81.455,81.426,12.28108957]
[1770791677068,12.42500391,81.46,81.431,0.91074757]
[1770791678091,0.87486104,81.468,81.431,0.91074757]
[1770791679293,13.14976989,81.467,81.431,0.91074757]
[1770791679496,0.87486104,81.466,81.431,0.91074757]
[1770791680584,0.87486104,81.466,81.433,0.91074757]
[1770791683102,0.87486104,81.464,81.433,0.91074757]
[1770791684310,0.87486104,81.459,81.426,0.91074757]
[1770791684614,0.87486104,81.449,81.42,1.11074757]
[1770791684785,0.87486104,81.449,81.42,0.2]
[1770791684981,0.87486104,81.439,81.41,0.2]
[1770791685185,0.87486104,81.437,81.41,0.2]
[1770791685519,0.87486104,81.437,81.411,13.19409994]
[1770791686495,0.87486104,81.437,81.412,0.91074757]
[1770791687404,0.87486104,81.444,81.414,0.91074757]
[1770791687785,12.42500391,81.44,81.414,0.91074757]
[1770791688502,29.06,81.459,81.412,12.28318779]
[1770791688503,12.42500391,81.46,81.421,0.91074757]
[1770791688696,0.87486104,81.459,81.421,0.91074757]
[1770791689793,13.1511261,81.458,81.423,0.91074757]
[1770791690604,0.87987375,81.457,81.423,0.91074757]
[1770791691503,0.87987375,81.457,81.431,0.83165256]
[1770791691688,0.87987375,81.455,81.431,0.83165256]
[1770791691889,0.87987375,81.455,81.421,0.83165256]
[1770791693503,0.87987375,81.455,81.424,0.83165256]
[1770791696412,0.87987375,81.449,81.414,0.83165256]
[1770791696612,0.87987375,81.449,81.422,0.83165256]
[1770791697002,12.27686792,81.454,81.426,0.83165256]
[1770791697510,0.87987375,81.453,81.426,0.83165256]
[1770791697717,0.87932435,81.449,81.41,0.2]
[1770791698016,4.63894468,81.45,81.411,0.83165256]
[1770791698207,12.27686792,81.454,81.42,0.83165256]
[1770791698208,13.15619227,81.454,81.42,0.83165256]
[1770791698390,12.27663821,81.456,81.425,12.2812404]
[1770791698708,12.27663821,81.456,81.426,0.83165256]
[1770791698922,13.15466338,81.456,81.426,0.83165256]
[1770791699897,4.63894468,81.45,81.426,0.83165256]
[1770791700422,4.63894468,81.45,81.41,4.83894468]
[1770791700423,0.87674091,81.449,81.419,0.83165256]
[1770791700717,0.87674091,81.449,81.41,0.2]
[1770791700718,0.87674091,81.429,81.41,0.2]
[1770791701499,4.63894468,81.44,81.41,1.03165256]
[1770791701720,0.87421648,81.449,81.417,0.83165256]
[1770791701895,0.87421648,81.449,81.419,0.83165256]
[1770791702096,0.87421648,81.459,81.421,0.83165256]
[1770791702303,0.87421648,81.455,81.421,0.83165256]
[1770791702917,30.68833945,81.465,81.431,0.83165256]
[1770791702918,0.87297597,81.465,81.431,0.83165256]
[1770791703102,12.27536089,81.464,81.431,0.83165256]
[1770791703616,29.16,81.474,81.441,0.83165256]
[1770791703824,12.27400488,81.473,81.441,0.83165256]
[1770791703993,12.27400488,81.473,81.443,0.83165256]
[1770791706529,0.86933927,81.473,81.443,0.83165256]
[1770791707014,0.86815478,81.469,81.431,0.83165256]
[1770791707213,0.86815478,81.469,81.436,13.11108762]
[1770791707410,0.86815478,81.469,81.44,12.27893761]
[1770791707812,0.86815478,81.469,81.441,0.83165256]
[1770791708002,12.27310104,81.479,81.445,0.83165256]
[1770791708003,13.14008493,81.479,81.445,0.83165256]
[1770791708205,0.86698389,81.478,81.445,0.83165256]
[1770791708505,12.2734023,81.477,81.445,0.83165256]
[1770791708711,0.86582645,81.476,81.445,0.83165256]
[1770791709219,0.86582645,81.469,81.445,0.83165256]
[1770791712222,12.27442002,81.471,81.445,0.83165256]
[1770791712617,4.63894468,81.48,81.447,0.83165256]
[1770791712922,16.911925,81.48,81.447,0.83165256]
[1770791713506,0.86132812,81.479,81.447,0.83165256]
[1770791714306,12.27325167,81.478,81.449,0.83165256]
[1770791715020,0.85915572,81.459,81.429,0.83165256]
[1770791716226,0.8580882,81.465,81.431,0.83165256]
[1770791716606,0.8580882,81.459,81.431,0.83165256]
[1770791717329,12.27460751,81.469,81.433,0.83165256]
[1770791718015,0.85598979,81.468,81.433,0.83165256]
[1770791718415,12.27460751,81.469,81.441,0.83165256]
[1770791719007,0.85495863,81.468,81.433,0.83165256]
[1770791719421,0.85495863,81.468,81.435,0.83165256]
[1770791719612,12.27460751,81.469,81.441,0.83165256]
[1770791720721,5.98226069,81.498,81.441,0.83165256]
[1770791720933,0.85193567,81.506,81.471,0.87908781]
[1770791721313,12.26858383,81.509,81.481,0.87908781]
[1770791721517,12.26797535,81.514,81.481,0.87908781]
[1770791721715,0.85095108,81.509,81.481,0.87908781]
[1770791721922,12.26797535,81.514,81.481,0.87908781]
[1770791722432,0.85095108,81.524,81.491,0.87908781]
[1770791722813,5.48580083,81.52,81.491,0.87908781]
[1770791723334,0.84997779,81.528,81.493,0.87908781]
[1770791723820,0.84901568,81.519,81.493,0.87908781]
[1770791724211,0.84901568,81.519,81.481,0.87908781]
[1770791724415,0.84901568,81.509,81.478,0.8149879]
[1770791725417,12.26873435,81.508,81.478,0.8149879]
[1770791726538,12.26873435,81.508,81.462,71.2091329]
[1770791726539,0.84901568,81.509,81.481,0.8149879]
[1770791726917,12.26807786,81.513,81.481,0.8149879]
[1770791728535,29.14,81.535,81.48,4.63582304]
[1770791728536,0.84012679,81.542,81.501,0.8149879]
[1770791728835,0.84012679,81.539,81.511,0.8149879]
[1770791729830,4.73582304,81.55,81.511,0.8149879]
[1770791729831,0.84012679,81.542,81.511,0.8149879]
[1770791730542,0.84012679,81.542,81.513,0.8149879]
[1770791732416,0.84012679,81.54,81.513,0.8149879]
[1770791732640,0.84012679,81.54,81.491,40.46]
[1770791732641,0.84012679,81.538,81.502,0.8149879]
[1770791733022,12.39639585,81.53,81.502,0.8149879]
[1770791733233,0.84012679,81.519,81.481,0.8149879]
[1770791733441,0.84012679,81.509,81.471,0.8149879]
[1770791733818,12.39639585,81.5,81.468,12.27463665]
[1770791734023,0.84012679,81.499,81.468,12.27463665]
[1770791734828,0.84012679,81.512,81.471,0.8149879]
[1770791735045,0.84012679,81.509,81.471,0.8149879]
[1770791735437,0.84012679,81.499,81.471,0.8149879]
[1770791737732,0.84012679,81.508,81.48,12.39639585]
[1770791737938,0.84012679,81.518,81.491,0.8149879]
[1770791739845,30.66248388,81.533,81.501,0.8149879]
[1770791739846,0.84012679,81.533,81.501,0.8149879]
[1770791740338,12.39639585,81.53,81.501,0.8149879]
[1770791740659,13.23652264,81.53,81.501,0.8149879]
[1770791741236,25.50199729,81.53,81.501,0.8149879]
[1770791742156,0.84012679,81.529,81.501,0.8149879]
[1770791743658,0.84012679,81.536,81.501,0.8149879]
[1770791744349,12.26406995,81.539,81.511,0.8149879]
[1770791744870,12.26347541,81.543,81.511,0.8149879]
[1770791745043,12.49639585,81.55,81.511,0.8149879]
[1770791745044,0.84012679,81.548,81.511,0.8149879]
[1770791745651,0.84012679,81.548,81.502,42.94373143]
[1770791745652,0.84012679,81.548,81.521,0.8149879]
[1770791745859,0.1,81.55,81.521,0.8149879]
[1770791746338,0.84012679,81.548,81.514,0.8149879]
[1770791747142,0.84012679,81.539,81.514,0.8149879]
[1770791747954,0.84012679,81.537,81.507,0.8149879]
[1770791748146,0.84012679,81.542,81.516,0.8149879]
[1770791748852,12.26271849,81.548,81.516,0.8149879]
[1770791749958,12.26271849,81.548,81.521,0.8149879]
[1770791750666,13.33652264,81.55,81.521,0.8149879]
[1770791750865,0.81746849,81.549,81.521,0.8149879]
[1770791751048,0.81746849,81.541,81.521,0.8149879]
[1770791751256,0.81746849,81.549,81.521,0.8149879]
[1770791752052,12.26271643,81.548,81.521,0.8149879]
[1770791752758,0.81746849,81.547,81.521,0.8149879]
[1770791753672,12.26271643,81.548,81.523,0.7905952]
[1770791753867,0.81746849,81.547,81.523,0.7905952]
[1770791754167,0.81746849,81.547,81.5,40.44]
[1770791754168,0.81746849,81.529,81.502,13.06020931]
[1770791754471,0.81746849,81.529,81.502,0.7905952]
[1770791755161,0.81746849,81.509,81.479,0.7905952]
[1770791755463,0.81746849,81.509,81.481,0.7905952]
[1770791756165,12.26873435,81.508,81.481,0.7905952]
[1770791756377,0.81746849,81.507,81.481,0.7905952]
[1770791756570,0.81746849,81.507,81.483,0.7905952]
[1770791757664,0.81746849,81.514,81.483,0.7905952]
[1770791758455,12.26735585,81.518,81.485,0.7905952]
[1770791759674,13.08482434,81.518,81.485,0.7905952]
[1770791760350,0.81746849,81.509,81.478,0.7905952]
[1770791760875,0.81746849,81.509,81.482,0.7905952]
[1770791761571,0.81746849,81.521,81.482,0.7905952]
[1770791761768,0.81746849,81.539,81.501,0.7905952]
[1770791762150,0.81746849,81.539,81.511,0.7905952]
[1770791762355,0.1,81.55,81.521,0.7905952]
[1770791762971,0.81746849,81.549,81.521,0.7905952]
[1770791763166,0.81746849,81.549,81.516,0.7905952]
[1770791763562,0.81746849,81.549,81.519,12.26707342]
[1770791763768,0.81746849,81.549,81.52,13.18699105]
[1770791763956,0.81746849,81.549,81.521,0.7905952]
[1770791764358,0.81746849,81.549,81.523,0.7905952]
[1770791764565,12.26271643,81.548,81.523,0.7905952]
[1770791765968,0.81746849,81.547,81.523,0.7905952]
[1770791766165,0.81746849,81.547,81.511,0.7905952]
[1770791766466,0.81746849,81.547,81.515,12.26755509]
[1770791766773,12.26271643,81.548,81.51,12.39639585]
[1770791766774,0.81746849,81.539,81.51,12.26831947]
[1770791766979,0.81746849,81.547,81.515,0.7905952]
[1770791767288,0.91746849,81.55,81.524,0.7905952]
[1770791767591,0.81746849,81.539,81.51,12.39639585]
[1770791767757,0.81746849,81.539,81.511,0.7905952]
[1770791768178,12.26422036,81.538,81.511,0.7905952]
[1770791769972,0.81746849,81.538,81.511,0.7905952]
[1770791771564,12.26256606,81.549,81.521,0.7905952]
[1770791772083,0.1,81.55,81.523,0.7905952]
[1770791773266,0.81746849,81.549,81.523,0.7905952]
[1770791773471,0.81746849,81.548,81.523,0.7905952]
[1770791774070,0.81746849,81.546,81.515,0.7905952]
[1770791774271,0.81746849,81.546,81.514,12.2677132]
[1770791775160,0.81746849,81.546,81.518,12.26719076]
[1770791775584,0.81746849,81.546,81.52,4.62829462]
[1770791775770,0.81746849,81.546,81.52,5.41888982]
[1770791776375,0.81746849,81.544,81.513,0.7905952]
[1770791777584,0.81746849,81.544,81.515,0.7905952]
[1770791778679,13.08093684,81.543,81.515,0.7905952]
[1770791778882,0.81746849,81.539,81.5,4.62795686]
[1770791779076,0.81746849,81.529,81.499,0.7905952]
[1770791779886,0.81746849,81.527,81.499,0.7905952]
[1770791780294,12.26516086,81.532,81.501,0.76688332]
[1770791780592,0.78047274,81.534,81.501,0.76688332]
[1770791783187,12.26356371,81.543,81.511,0.76688332]
[1770791783890,0.78047274,81.542,81.511,0.76688332]
[1770791784788,0.78047274,81.542,81.51,4.62795686]
[1770791784789,0.74662354,81.539,81.503,0.74698482]
[1770791785083,0.74662354,81.529,81.496,0.74698482]
[1770791785288,0.74662354,81.529,81.492,52.61105605]
[1770791785289,4.62795686,81.51,81.492,40.34]
[1770791785479,0.74662354,81.499,81.464,0.74698482]
[1770791785680,0.74662354,81.499,81.463,12.27541734]
[1770791785681,0.74662354,81.499,81.47,4.62795686]
[1770791785884,0.74662354,81.499,81.451,40.32]
[1770791785885,0.74662354,81.527,81.494,0.74698482]
[1770791786072,12.26572465,81.528,81.487,0.74698482]
[1770791786073,0.74662354,81.519,81.487,0.74698482]
[1770791786277,0.74662354,81.519,81.48,4.62795686]
[1770791786477,4.62795686,81.52,81.48,4.62795686]
[1770791786478,43.67665983,81.528,81.482,0.74698482]
[1770791786672,0.74662354,81.527,81.482,0.74698482]
[1770791786873,0.74662354,81.519,81.487,0.74698482]
[1770791787195,0.74662354,81.509,81.472,0.74698482]
[1770791787392,0.74662354,81.507,81.475,12.27362886]
[1770791787583,0.74662354,81.507,81.476,0.74698482]
[1770791789304,0.74662354,81.507,81.481,0.74698482]
[1770791789676,12.26873435,81.508,81.481,0.74698482]
[1770791790081,12.26798179,81.513,81.481,0.74698482]
[1770791791399,0.74662354,81.514,81.483,0.74698482]
[1770791791788,0.74662354,81.499,81.451,0.74698482]
[1770791792095,0.74662354,81.479,81.444,0.74698482]
[1770791792881,0.74662354,81.479,81.447,12.27782435]
[1770791793081,0.74662354,81.479,81.448,0.74698482]
[1770791793281,0.74662354,81.479,81.44,12.41770503]
[1770791793282,0.74662354,81.479,81.452,0.74698482]
[1770791793890,0.74662354,81.477,81.442,0.74698482]
[1770791796598,0.74662354,81.475,81.444,0.74698482]
[1770791799492,0.74662354,81.475,81.446,0.74698482]
[1770791800912,0.74662354,81.473,81.446,0.74698482]
[1770791801995,0.74662354,81.473,81.447,12.27792306]
[1770791802498,13.16432857,81.47,81.447,12.27792306]
[1770791802704,0.74662354,81.47,81.447,12.27792306]
[1770791803293,0.74662354,81.478,81.447,12.27792306]
[1770791803707,0.74662354,81.478,81.443,12.27852267]
[1770791803912,0.74662354,81.476,81.446,0.74698482]
[1770791804894,0.74662354,81.469,81.439,0.74698482]
[1770791805299,12.41770503,81.46,81.439,0.74698482]
[1770791805501,0.74662354,81.467,81.439,0.74698482]
[1770791805802,12.41770503,81.47,81.439,0.74698482]
[1770791806007,12.27460751,81.469,81.439,0.74698482]
[1770791806207,0.74662354,81.468,81.439,0.74698482]
[1770791807315,13.02153239,81.467,81.439,0.74698482]
[1770791810524,12.27373273,81.475,81.441,0.77960144]
[1770791811022,13.02554264,81.475,81.441,0.77960144]
[1770791811219,12.27373273,81.475,81.441,0.77960144]
[1770791811625,12.41770503,81.47,81.441,0.77960144]
[1770791811798,0.75180991,81.474,81.441,0.77960144]
[1770791812001,0.75180991,81.469,81.437,0.77960144]
[1770791813228,12.27475818,81.468,81.437,0.77960144]
[1770791813419,0.75180991,81.467,81.437,0.77960144]
[1770791813911,0.75180991,81.467,81.438,12.27927994]
[1770791814221,0.75180991,81.459,81.439,0.77960144]
[1770791814406,12.41770503,81.46,81.439,0.77960144]
[1770791814920,4.63801872,81.46,81.439,0.77960144]
[1770791816327,0.75180991,81.464,81.439,0.77960144]
[1770791817220,0.75180991,81.459,81.439,0.77960144]
[1770791818429,0.75180991,81.459,81.433,0.77960144]
[1770791818807,0.75180991,81.459,81.436,13.05918194]
[1770791819224,0.75180991,81.459,81.437,0.77960144]
[1770791820232,0.75180991,81.459,81.436,12.2795805]
[1770791820233,0.75180991,81.449,81.41,1e-08]
[1770791820413,0.75180991,81.419,81.392,0.77960144]
[1770791820612,4.63802277,81.41,81.392,0.77960144]
[1770791820927,4.63802277,81.4,81.392,0.77960144]
[1770791821107,4.63802277,81.41,81.392,0.77960144]
[1770791821309,0.75180991,81.429,81.392,0.77960144]
[1770791822234,13.03259784,81.428,81.394,0.77960144]
[1770791822440,13.03259784,81.428,81.401,0.77960144]
[1770791822441,12.28078793,81.428,81.401,0.77960144]
[1770791822615,12.2798407,81.435,81.411,0.77960144]
[1770791824310,4.63802277,81.44,81.411,0.77960144]
[1770791824719,5.38983268,81.44,81.411,0.77960144]
[1770791824920,0.75180991,81.429,81.401,0.77960144]
[1770791825128,42.97325834,81.446,81.401,0.77960144]
[1770791825129,4.63802277,81.42,81.401,0.77960144]
[1770791825427,0.75180991,81.423,81.401,0.77960144]
[1770791825736,0.75180991,81.429,81.401,0.77960144]
[1770791826308,13.03259784,81.428,81.401,0.77960144]
[1770791826539,0.75180991,81.427,81.401,0.77960144]
[1770791828235,12.28108957,81.426,81.401,0.77960144]
[1770791828537,13.03289948,81.426,81.401,0.77960144]
[1770791828831,102.7,81.474,81.401,0.77960144]
[1770791828832,0.75180991,81.438,81.402,0.77960144]
[1770791830217,0.75180991,81.435,81.404,0.77960144]
[1770791830911,4.63802277,81.43,81.404,0.77960144]
[1770791831118,4.63802277,81.42,81.404,0.77960144]
[1770791831331,0.75180991,81.422,81.398,0.77960144]
[1770791832334,5.38983268,81.42,81.398,0.77960144]
[1770791832638,5.38983268,81.42,81.39,4.63802278]
[1770791832639,4.63802277,81.41,81.39,1e-08]
[1770791832810,12.28207425,81.42,81.39,1e-08]
[1770791832811,0.75180991,81.409,81.39,1e-08]
[1770791833439,0.75180991,81.429,81.4,0.77960144]
[1770791833735,0.75180991,81.42,81.4,0.77960144]
[1770791833935,0.75180991,81.429,81.4,0.77960144]
[1770791834137,5.13032502,81.452,81.4,0.77960144]
[1770791834318,0.75180991,81.439,81.404,0.77960144]
[1770791834742,4.63802277,81.43,81.406,0.77960144]
[1770791835636,0.75180991,81.429,81.406,0.77960144]
[1770791837625,12.27986355,81.435,81.408,0.77960144]
[1770791837844,0.75180991,81.437,81.408,0.77960144]
[1770791838439,0.75180991,81.429,81.403,0.77960144]
[1770791838945,12.2795773,81.437,81.406,0.77960144]
[1770791839132,0.75180991,81.436,81.406,0.77960144]
[1770791839846,0.75180991,81.436,81.405,12.28410858]
[1770791839847,0.75180991,81.436,81.408,0.77960144]
[1770791840019,0.75180991,81.436,81.411,0.77960144]
[1770791841447,29.5,81.451,81.411,0.77960144]
[1770791841448,0.70791301,81.461,81.412,0.69609779]
[1770791841738,0.70791301,81.468,81.441,0.69609779]
[1770791842537,0.70791301,81.459,81.441,0.69609779]
[1770791843462,0.70791301,81.449,81.41,16.92473086]
[1770791843749,12.27626506,81.458,81.41,16.92473086]
[1770791843750,0.70791301,81.439,81.411,0.69609779]
[1770791844628,0.70791301,81.439,81.415,12.28271398]
[1770791845020,0.70791301,81.439,81.415,12.96607823]
[1770791845233,0.70791301,81.439,81.416,0.68336425]
[1770791848260,4.64136745,81.43,81.409,0.68336425]
[1770791848545,12.27927994,81.438,81.409,0.68336425]
[1770791848546,0.73451326,81.429,81.409,0.68336425]
[1770791848727,0.73451326,81.435,81.409,0.68336425]
[1770791848925,12.27927994,81.438,81.413,0.68336425]
[1770791849129,0.73451326,81.442,81.413,0.68336425]
[1770791849342,0.73451326,81.442,81.421,0.68336425]
[1770791849845,0.73451326,81.448,81.421,0.68336425]
[1770791853051,0.73451326,81.446,81.421,0.68336425]
[1770791856357,0.73451326,81.446,81.422,0.68336425]
[1770791856538,12.27822456,81.445,81.422,0.68336425]
[1770791857443,13.01273782,81.445,81.422,0.68336425]
[1770791857949,0.73451326,81.444,81.422,0.68336425]
[1770791860053,13.0129387,81.444,81.422,0.68336425]
[1770791860851,12.27842544,81.444,81.422,0.68336425]
[1770791861155,0.73451326,81.443,81.422,0.68336425]
[1770791861966,4.64136745,81.45,81.424,0.68336425]
[1770791862143,0.73451326,81.464,81.441,0.68336425]
[1770791865251,12.27460751,81.469,81.441,0.68336425]
[1770791865636,0.73451326,81.468,81.441,0.68336425]
[1770791866455,0.73451326,81.466,81.441,0.68336425]
[1770791866663,0.73451326,81.459,81.432,0.68336425]
[1770791867175,0.73451326,81.459,81.435,12.96304539]
[1770791868052,0.73451326,81.459,81.435,12.27968114]
[1770791868251,0.73451326,81.459,81.44,0.68336425]
[1770791869254,0.73451326,81.457,81.435,0.68336425]
[1770791870065,0.73451326,81.457,81.427,0.68336425]
[1770791871966,0.68110555,81.455,81.427,0.68336425]
[1770791874158,0.68110555,81.453,81.427,0.68336425]
[1770791874359,12.27686792,81.454,81.411,0.71812117]
[1770791874360,0.68110555,81.449,81.411,0.71812117]
[1770791874562,0.68110555,81.449,81.413,0.71812117]
[1770791874765,0.68110555,81.439,81.413,0.71812117]
[1770791875271,0.68110555,81.439,81.417,0.71812117]
[1770791879453,12.27611436,81.459,81.421,0.71812117]
[1770791879656,0.68110555,81.458,81.431,0.71812117]
[1770791880070,0.68110555,81.437,81.406,0.71812117]
[1770791880277,4.64136745,81.43,81.402,0.71812117]
[1770791880464,0.68110555,81.409,81.39,1e-08]
[1770791881376,0.68110555,81.419,81.39,1e-08]
[1770791881581,0.68110555,81.419,81.395,12.28576629]
[1770791881775,0.68110555,81.437,81.41,4.64136745]
[1770791882375,12.96068706,81.436,81.411,0.7169605]
[1770791882879,0.68110555,81.435,81.411,0.7169605]
[1770791885361,12.27988309,81.434,81.411,0.7169605]
[1770791885563,0.68110555,81.433,81.411,0.7169605]
[1770791888283,12.27988309,81.434,81.411,0.7169605]
[1770791888485,0.68110555,81.439,81.411,0.71812117]
[1770791890287,0.68110555,81.437,81.411,0.71812117]
[1770791891087,0.68110555,81.442,81.421,0.71812117]
[1770791891276,0.68110555,81.44,81.415,0.71812117]
[1770791892788,0.68110555,81.44,81.417,0.71812117]
[1770791894787,0.68110555,81.445,81.421,0.71812117]
[1770791896186,12.27837532,81.444,81.421,0.71812117]
[1770791896390,0.68110555,81.443,81.421,0.71812117]
[1770791896691,0.68110555,81.443,81.415,0.71812117]
[1770791897183,0.68110555,81.439,81.415,0.71812117]
[1770791898587,0.68110555,81.448,81.417,0.71812117]
[1770791900488,0.68110555,81.448,81.421,0.73758086]
[1770791900691,4.63935071,81.46,81.421,0.73758086]
[1770791900692,0.68712503,81.446,81.421,0.73758086]
[1770791903588,12.27822456,81.445,81.421,0.73758086]
[1770791903770,0.68712503,81.444,81.421,0.73758086]
[1770791904577,0.7457285,81.454,81.422,0.70911931]
[1770791905785,0.7457285,81.452,81.424,0.70911931]
[1770791908594,0.7457285,81.452,81.431,0.70911931]
[1770791910308,0.7457285,81.458,81.431,0.70911931]
[1770791910483,0.7457285,81.467,81.441,0.70911931]
[1770791911176,0.7457285,81.467,81.41,39.96]
[1770791911177,0.7457285,81.467,81.443,0.70911931]
[1770791911583,0.7457285,81.499,81.461,0.70911931]
[1770791911798,0.7457285,81.499,81.471,0.70911931]
[1770791912177,0.7457285,81.499,81.48,4.63935071]
[1770791912395,29.9,81.524,81.481,0.70911931]
[1770791912396,0.7457285,81.518,81.481,0.70911931]
[1770791912693,0.7457285,81.516,81.49,4.63935071]
[1770791912888,0.7457285,81.516,81.491,0.70911931]
[1770791914583,0.7457285,81.514,81.482,0.70911931]
[1770791914987,0.7457285,81.514,81.486,0.70911931]
[1770791915707,0.7457285,81.514,81.49,0.70911931]
[1770791917394,13.01371029,81.513,81.49,0.70911931]
[1770791917570,0.7457285,81.512,81.49,0.70911931]
[1770791919193,0.7457285,81.509,81.476,0.70911931]
[1770791919398,12.2682828,81.511,81.471,12.27430619]
[1770791919399,0.7457285,81.499,81.471,12.27430619]
[1770791919784,0.7457285,81.499,81.469,0.70911931]
[1770791920893,0.7457285,81.499,81.463,0.70911931]
[1770791921192,0.7457285,81.489,81.463,0.70911931]
[1770791922097,12.27174553,81.488,81.46,39.92]
[1770791922398,0.7457285,81.469,81.437,0.70911931]
[1770791922575,5.38507921,81.46,81.437,0.70911931]
[1770791922976,5.38507921,81.46,81.438,12.98839925]
[1770791923391,0.7457285,81.449,81.421,0.70911931]
[1770791923701,0.7457285,81.455,81.428,0.70911931]
[1770791923877,0.7457285,81.455,81.427,12.28085711]
[1770791924193,0.7457285,81.455,81.423,0.70911931]
[1770791925212,0.7457285,81.469,81.431,0.70911931]
[1770791925512,12.27393936,81.474,81.441,0.70911931]
[1770791925892,0.7457285,81.479,81.441,0.70911931]
[1770791926085,0.7457285,81.479,81.451,0.70911931]
[1770791926795,0.7457285,81.479,81.453,0.70911931]
[1770791927299,0.7457285,81.479,81.452,12.27716937]
[1770791927300,0.7457285,81.477,81.446,12.98707715]
[1770791927479,0.7457285,81.477,81.447,0.70911931]
[1770791928296,0.7457285,81.477,81.443,12.27847505]
[1770791928488,0.7457285,81.469,81.443,12.27847505]
[1770791929102,0.7457285,81.467,81.441,12.27882761]
[1770791929398,0.7457285,81.467,81.435,0.70911931]
[1770791929699,0.7457285,81.459,81.435,0.70911931]
[1770791930688,0.7457285,81.459,81.437,12.27929403]
[1770791930889,0.7457285,81.459,81.435,0.70911931]
[1770791931383,0.7457285,81.459,81.436,12.27958151]
[1770791931583,0.7457285,81.459,81.437,0.75018148]
[1770791933089,0.7457285,81.459,81.438,12.27927994]
[1770791933400,0.71183243,81.469,81.441,0.75018148]
[1770791934305,0.71183243,81.469,81.442,12.27867684]
[1770791934493,0.71183243,81.469,81.443,0.75018148]
[1770791937001,0.71183243,81.469,81.444,12.27837532]
[1770791937408,0.71183243,81.469,81.444,13.0285568]
[1770791940014,0.71183243,81.469,81.445,0.75018148]
[1770791940587,0.71183243,81.467,81.432,52.26018469]
[1770791940823,0.71183243,81.449,81.411,30.70830007]
[1770791941126,0.71183243,81.433,81.412,0.75018148]
[1770791941423,0.71183243,81.452,81.421,0.75018148]
[1770791942394,0.71183243,81.452,81.423,0.75018148]
[1770791942794,0.71183243,81.459,81.423,0.75018148]
[1770791943095,12.27562971,81.463,81.431,0.75018148]
[1770791943096,0.71183243,81.463,81.431,0.75018148]
[1770791944511,0.71183243,81.463,81.433,0.75018148]
[1770791944727,0.71183243,81.461,81.433,0.75018148]
[1770791948515,0.71183243,81.461,81.435,0.75018148]
[1770791948913,12.27504012,81.467,81.44,4.63681553]
[1770791949132,12.27504012,81.467,81.441,0.75018148]
[1770791949322,0.71183243,81.472,81.441,0.75018148]
[1770791950401,0.71183243,81.47,81.443,0.75018148]
[1770791950808,0.71183243,81.469,81.443,0.75018148]
[1770791951216,0.71183243,81.469,81.442,12.27867684]
[1770791951522,0.71183243,81.469,81.434,12.27976258]
[1770791951915,0.71183243,81.459,81.426,40.02]
[1770791952418,0.71183243,81.459,81.426,40.77018148]
[1770791952605,12.27626506,81.458,81.426,40.77018148]
[1770791952801,0.71183243,81.457,81.426,40.77018148]
[1770791953006,0.71183243,81.457,81.427,13.03112023]
[1770791953212,0.71183243,81.457,81.428,0.75018148]
[1770791953600,12.27543909,81.464,81.428,0.75018148]
[1770791953803,12.98727152,81.464,81.431,0.75018148]
[1770791954011,0.71183243,81.476,81.441,0.75018148]
[1770791954624,0.71183243,81.476,81.443,0.75018148]
[1770791954928,0.71183243,81.474,81.443,0.75018148]
[1770791957023,0.71183243,81.474,81.444,12.27837532]
[1770791957229,0.71183243,81.472,81.445,0.75018148]
[1770791960534,12.2734023,81.477,81.45,4.63645505]
[1770791960833,0.77756423,81.478,81.451,0.76171533]
[1770791961238,0.77756423,81.488,81.451,0.76171533]
[1770791962018,0.77756423,81.488,81.461,0.76171533]
[1770791962616,0.77756423,81.488,81.463,0.76171533]
[1770791964831,12.27189613,81.487,81.465,0.73349008]
[1770791965023,0.70670435,81.486,81.465,0.73349008]
[1770791965720,0.70670435,81.486,81.459,0.73349008]
[1770791967625,0.70670435,81.486,81.461,0.73349008]
[1770791968942,0.70670435,81.486,81.463,0.73349008]
[1770791969646,0.70670435,81.486,81.44,40.08]
[1770791969647,0.70670435,81.479,81.451,0.73349008]
[1770791970231,0.70670435,81.469,81.441,0.73349008]
[1770791970431,0.70670435,81.469,81.444,0.73349008]
[1770791970630,0.70670435,81.469,81.443,12.27839713]
[1770791971342,0.70670435,81.469,81.44,0.73349008]
[1770791972243,0.70670435,81.469,81.441,0.73349008]
[1770791973344,0.70670435,81.475,81.442,12.27867684]
[1770791973546,0.70670435,81.475,81.443,0.73349008]
[1770791973729,0.70670435,81.475,81.451,0.73349008]